fUST/lending_fUST_20251117
["ID","MTS","AMOUNT","RATE_DAILY","PERIOD"]
[394217594,1763387437911,-500.0,0.0001665,2]
[394217596,1763387437920,-500.0,0.0001665,2]
[394217598,1763387437929,-500.0,0.0001665,2]
[394217599,1763387437938,-500.0,0.0001665,2]
[394217601,1763387437948,-500.0,0.0001665,2]
[394217603,1763387437957,-500.0,0.0001665,2]
[394217605,1763387437967,-500.0,0.0001665,2]
[394217608,1763387437976,-500.0,0.0001665,2]
[394217610,1763387437985,-500.0,0.0001665,2]
[394217612,1763387437995,-500.0,0.0001665,2]
[394217614,1763387438004,-500.0,0.0001665,2]
[394217616,1763387438013,-500.0,0.0001665,2]
[394217617,1763387438024,-500.0,0.0001665,2]
[394217619,1763387438034,-402.7782464,0.0001665,2]
[394217622,1763387438043,-500.0,0.0001665,2]
[394217624,1763387438053,-500.0,0.0001665,2]
[394217625,1763387438064,-500.0,0.0001665,2]
[394217628,1763387438074,-50000.0,0.00016652,2]
[394217630,1763387438087,-500.0,0.00016654,2]
[394217632,1763387438097,-500.0,0.00016654,2]
[394217634,1763387438107,-500.0,0.00016654,2]
[394217636,1763387438116,-500.0,0.00016654,2]
[394217637,1763387438125,-500.0,0.00016654,2]
[394217639,1763387438134,-500.0,0.00016654,2]
[394217641,1763387438143,-500.0,0.00016654,2]
[394217643,1763387438152,-500.0,0.00016654,2]
[394217645,1763387438161,-500.0,0.00016654,2]
[394217647,1763387438171,-500.0,0.00016654,2]
[394217649,1763387438181,-500.0,0.00016654,2]
[394217651,1763387438191,-500.0,0.00016654,2]
[394217653,1763387438201,-500.0,0.00016654,2]
[394217655,1763387438210,-500.0,0.00016654,2]
[394217657,1763387438220,-500.0,0.00016654,2]
[394217659,1763387438229,-500.0,0.00016654,2]
[394217661,1763387438239,-500.0,0.00016654,2]
[394217663,1763387438248,-500.0,0.00016654,2]
[394217664,1763387438258,-533.00699927,0.00016654,2]
[394217666,1763387438270,-500.0,0.00016654,2]
[394217668,1763387438279,-500.0,0.00016654,2]
[394217670,1763387438290,-500.0,0.00016654,2]
[394217673,1763387438300,-500.0,0.00016654,2]
[394217675,1763387438311,-500.0,0.00016654,2]
[394217677,1763387438320,-500.0,0.00016654,2]
[394217679,1763387438330,-500.0,0.00016654,2]
[394217681,1763387438340,-500.0,0.00016654,2]
[394217683,1763387438349,-250.0,0.00016654,2]
[394217685,1763387438359,-6232.9681233,0.00016655,2]
[394217696,1763387438471,-41532.8229553,0.00016655,2]
[394217697,1763387438481,-500.0,0.00016673,2]
[394217698,1763387438491,-300.0,0.00016987,2]
[394217699,1763387438500,-300.0,0.00016987,2]
[394217700,1763387438509,-300.0,0.00016987,2]
[394217701,1763387438518,-300.0,0.00016987,2]
[394217702,1763387438528,-300.0,0.00016987,2]
[394217704,1763387438537,-300.0,0.00016987,2]
[394217706,1763387438547,-300.0,0.00016987,2]
[394217708,1763387438556,-300.0,0.00016987,2]
[394217710,1763387438566,-300.0,0.00016987,2]
[394217712,1763387438576,-300.0,0.00016987,2]
[394217714,1763387438585,-300.0,0.00016987,2]
[394217716,1763387438594,-300.0,0.00016987,2]
[394217718,1763387438603,-300.0,0.00016987,2]
[394217720,1763387438612,-300.0,0.00016987,2]
[394217722,1763387438622,-300.0,0.00016987,2]
[394217724,1763387438632,-600.0,0.00016987,2]
[394217726,1763387438641,-1000.0,0.00017221,2]
[394217728,1763387438650,-252.1909493,0.0001726,2]
[394217730,1763387438659,-490.68923817,0.00017822,2]
[394217732,1763387438669,-211.72669019,0.00017908,2]
[394217734,1763387438679,-420.0,0.00018192,2]
[394217736,1763387438688,-720.0,0.00018686,2]
[394217738,1763387438697,-302.36509981,0.000189,2]
[394217739,1763387438707,-302.36509981,0.00019089,2]
[394217741,1763387438716,-495.28841905,0.00019273,2]
[394217743,1763387438725,-500.0,0.00019273,2]
[394217745,1763387438735,-438.36897139,0.00019273,2]
[394217747,1763387438744,-302.36509981,0.00019278,2]
[394217748,1763387438753,-302.36509981,0.00019467,2]
[394217749,1763387438762,-302.36509981,0.00019656,2]
[394217750,1763387438773,-1000.0,0.00019821,2]
[394217751,1763387438782,-513.19855863,0.00019845,4]
[394217752,1763387438792,-587.0,0.00019877,2]
[394217753,1763387438803,-490.68923817,0.00019892,2]
[394217754,1763387438812,-239.74934036,0.00019908,2]
[394217755,1763387438823,-1027.53898189,0.0002,2]
[394217756,1763387438832,-747.913848,0.00020187,2]
[394217757,1763387438842,-1597.57119322,0.00020368,2]
[394217758,1763387438851,-2818.43,0.000205,10]
[394217759,1763387438860,-864.0,0.00020555,2]
[394217760,1763387438870,-823.0,0.00021718,2]
[394217761,1763387438879,-267.77199053,0.00021908,2]
[394217762,1763387438889,-490.68923817,0.00021962,2]
[394217763,1763387438899,-381.93,0.00022,7]
[394217764,1763387438909,-287.34,0.00022028,2]
[394217765,1763387438919,-167.41,0.00022028,2]
[394217766,1763387438930,-167.41,0.00022028,2]
[394217767,1763387438940,-167.41,0.00022028,2]
[394217768,1763387438951,-167.41,0.00022028,2]
[394217769,1763387438963,-167.41,0.00022028,2]
[394217770,1763387438975,-167.41,0.00022028,2]
[394217771,1763387438984,-167.4,0.00022028,2]
[394217772,1763387439067,-160.0,0.00022075,2]
[394217773,1763387439078,-1000.0,0.0002261,20]
[394217774,1763387439088,-260.0,0.00022623,2]
[394217775,1763387439099,-166.46662109,0.0002297,2]
[394217776,1763387439109,-1615.645627,0.00023048,2]
[394217777,1763387439119,-360.0,0.00023171,2]
[394217778,1763387439130,-500.0,0.0002338,2]
[394217779,1763387439140,-460.0,0.00023719,2]
[394217780,1763387439151,-500.0,0.00023781,2]
[394217781,1763387439161,-295.7946407,0.00023908,2]
[394217782,1763387439171,-400.67432439,0.0002392,2]
[394217783,1763387439181,-1018.00502542,0.00023928,2]
[394217784,1763387439191,-500.0,0.00023973,2]
[394217785,1763387439202,-501.00000005,0.00023973,2]
[394217786,1763387439212,-587.8768631,0.00023973,2]
[394217787,1763387439222,-500.0,0.00023973,2]
[394217789,1763387439232,-500.0,0.00023973,2]
[394217791,1763387439243,-500.0,0.00023973,2]
[394217792,1763387439252,-500.0,0.00023973,2]
[394217793,1763387439261,-500.0,0.00023973,2]
[394217794,1763387439273,-500.0,0.00023973,2]
[394217795,1763387439282,-500.0,0.00023973,2]
[394217796,1763387439293,-500.0,0.00023973,2]
[394217797,1763387439303,-500.0,0.00023973,2]
[394217798,1763387439314,-502.44222309,0.00023973,2]
[394217799,1763387439323,-500.0,0.00023973,2]
[394217800,1763387439334,-500.0,0.00023973,2]
[394217801,1763387439344,-500.0,0.00023973,2]
[394217802,1763387439354,-500.0,0.00023973,2]
[394217803,1763387439364,-500.0,0.00023973,2]
[394217805,1763387439374,-500.0,0.00023973,2]
[394217807,1763387439385,-100000.0,0.0002399,2]
[394217809,1763387439398,-1000.0,0.00024,24]
[394217811,1763387439407,-151.0,0.00024,9]
[394217812,1763387439419,-491.17992741,0.00024032,2]
[394217814,1763387439430,-440.0,0.00024267,2]
[394217816,1763387439441,-946.52794804,0.00024275,2]
[394217818,1763387439451,-946.52794802,0.00024406,2]
[394217820,1763387439460,-179.77962619,0.00024415,2]
[394217821,1763387439473,-168.0,0.0002443,2]
[394217823,1763387439482,-1000.81735696,0.00024521,2]
[394217825,1763387439492,-1000.0,0.00024521,2]
[394217827,1763387439502,-1000.0,0.00024521,2]
[394217829,1763387439511,-1000.0,0.00024521,2]
[394217831,1763387439522,-1000.0,0.00024521,2]
[394217833,1763387439532,-946.52794802,0.00024538,2]
[394217835,1763387439542,-323.60332715,0.00024538,2]
[394217837,1763387439551,-163.0,0.000246,7]
[394217839,1763387439563,-380.0,0.00024658,2]
[394217841,1763387439583,-946.52794802,0.00024669,2]
[394217843,1763387439592,-500.0,0.00024773,2]
[394217845,1763387439602,-500.0,0.00024773,2]
[394217847,1763387439611,-502.73202336,0.00024773,2]
[394217849,1763387439621,-182.75279002,0.00024773,2]
[394217851,1763387439630,-37492.9167586,0.00024786,2]
[394217853,1763387439640,-6256.3899878,0.00024786,2]
[394217855,1763387439649,-2638.4654252,0.00024786,2]
[394217857,1763387439658,-533.89,0.000248,14]
[394217859,1763387439667,-381.93,0.000248,7]
[394217861,1763387439676,-946.52794802,0.000248,2]
[394217863,1763387439685,-126841.356974,0.000248,2]
[394217865,1763387439694,-199.03207514,0.00024827,2]
[394217867,1763387439703,-11665.84499586,0.00024844,2]
[394217869,1763387439713,-1000.0,0.00024871,20]
[394217871,1763387439722,-244.0,0.00024871,20]
[394217873,1763387439731,-150.0,0.00024873,2]
[394217875,1763387439740,-500.0,0.00024877,2]
[394217877,1763387439749,-26502.17,0.000249,7]
[394217879,1763387439760,-524.014313,0.000249,2]
[394217881,1763387439772,-953.07101542,0.000249,2]
[394217884,1763387439788,-122302.44530288,0.000249,2]
[394217887,1763387439808,-691.06251303,0.000249,2]
[394218210,1763387442913,-2225.76310084,0.00023509,2]
[394218213,1763387442926,-2225.76310084,0.00023733,2]
[394218215,1763387442938,-542.78251106,0.00023771,2]
[394218602,1763387446759,-3111.87439025,0.00023771,2]
[394218604,1763387446769,-3218.93684798,0.00023837,2]
[394218606,1763387446786,-435.72005333,0.00023837,2]
[394218608,1763387446796,-2225.76310084,0.00023979,2]
[394218610,1763387446806,-3654.65690131,0.00024254,2]
[394218612,1763387446815,-2225.76310084,0.00024382,2]
[394218614,1763387446825,-3654.65690131,0.00024406,2]
[394218616,1763387446837,-2225.76310085,0.00024653,2]
[394218618,1763387446847,-515101.34006909,0.000249,2]
[394219037,1763387657715,275.45183315,0.000165,3]
[394219039,1763387837322,1146.5480166,0.00032876,120]
[394219049,1763388423466,502.0,0.000328,120]
[394219050,1763388480407,218.88,0.00014535,4]
[394219051,1763388480551,218.88,0.00014535,4]
[394219062,1763388589052,-190.894295,0.00015143,2]
[394219063,1763388589076,-547.70334644,0.000157,2]
[394219064,1763388589099,-151.89368125,0.00015702,2]
[394219065,1763388589123,-300.0,0.00015751,2]
[394219066,1763388589146,-19668.24603168,0.00015752,2]
[394219067,1763388589169,-392.6691324,0.00015752,2]
[394219068,1763388589192,-5147.86432822,0.00016,2]
[394219069,1763388589217,-300.0,0.00016066,2]
[394219070,1763388589241,-300.0,0.00016066,2]
[394219071,1763388589265,-300.0,0.00016066,2]
[394219072,1763388589291,-300.0,0.00016066,2]
[394219073,1763388589321,-300.0,0.00016066,2]
[394219074,1763388589353,-300.0,0.00016066,2]
[394219075,1763388589381,-300.0,0.00016066,2]
[394219076,1763388589409,-300.0,0.00016066,2]
[394219077,1763388589438,-300.0,0.00016066,2]
[394219078,1763388589463,-300.0,0.00016066,2]
[394219079,1763388589585,-300.0,0.00016066,2]
[394219080,1763388589612,-300.0,0.00016066,2]
[394219081,1763388589637,-300.0,0.00016066,2]
[394219082,1763388589660,-300.0,0.00016066,2]
[394219083,1763388589687,-300.0,0.00016066,2]
[394219084,1763388589711,-600.0,0.00016066,2]
[394219085,1763388589736,-50000.0,0.00016066,2]
[394219122,1763388631932,-500.0,0.00016073,2]
[394219125,1763388631941,-121.83427958,0.00016337,2]
[394219482,1763388637749,-48.73100022,0.00016337,2]
[394219483,1763388637766,-170.5652798,0.00016338,2]
[394219484,1763388637780,-170.5652798,0.00016338,2]
[394219485,1763388637795,-300.0,0.00016437,2]
[394219486,1763388637809,-239.12189389,0.00016621,2]
[394219487,1763388637824,-760.87810611,0.00016621,2]
[394219488,1763388637838,-300.0,0.00016766,2]
[394219489,1763388637850,-300.0,0.00016766,2]
[394219490,1763388637865,-300.0,0.00016766,2]
[394219491,1763388637879,-42.57275382,0.00016766,2]
[394219492,1763388637893,-257.42724618,0.00016766,2]
[394219493,1763388637907,-177.57275382,0.00016766,2]
[394219494,1763388637922,-122.42724618,0.00016766,2]
[394219495,1763388637936,-300.0,0.00016766,2]
[394219496,1763388637950,-300.0,0.00016766,2]
[394219497,1763388637964,-300.0,0.00016766,2]
[394219498,1763388637978,-300.0,0.00016766,2]
[394219499,1763388637994,-206.51866752,0.00016887,2]
[394219500,1763388638006,-179.23454387,0.00017701,2]
[394219501,1763388638016,-420.0,0.00017963,2]
[394219502,1763388638027,-392.6691324,0.00018109,2]
[394219503,1763388638040,-587.0,0.00019631,2]
[394219504,1763388638056,-206.57540649,0.00019701,2]
[394219506,1763388638068,-9999.5,0.0002,2]
[394219508,1763388638079,-392.6691324,0.00020467,2]
[394219511,1763388638092,-510.29899651,0.00020669,2]
[394219513,1763388638104,-500.0,0.00020669,2]
[394219515,1763388638115,-500.0,0.00020669,2]
[394219518,1763388638126,-500.0,0.00020669,2]
[394219520,1763388638137,-500.0,0.00020669,2]
[394219522,1763388638149,-500.0,0.00020669,2]
[394219524,1763388638160,-500.0,0.00020669,2]
[394219527,1763388638173,-390.27782464,0.00020669,2]
[394219529,1763388638185,-500.0,0.00020669,2]
[394219531,1763388638197,-500.0,0.00020669,2]
[394219534,1763388638210,-500.0,0.00020669,2]
[394219536,1763388638223,-500.0,0.00020669,2]
[394219538,1763388638235,-172.06,0.00021067,4]
[394219540,1763388638248,-172.06,0.00021067,4]
[394219543,1763388638259,-172.06,0.00021067,4]
[394219545,1763388638272,-172.06,0.00021067,4]
[394219547,1763388638284,-172.06,0.00021067,4]
[394219549,1763388638296,-161.14,0.00021067,4]
[394219552,1763388638308,-161.15834862,0.00021167,4]
[394219554,1763388638320,-533.0,0.00021454,2]
[394219556,1763388638332,-233.91626912,0.00021701,2]
[394219559,1763388638344,-500.0,0.00021927,2]
[394219561,1763388638356,-500.0,0.00021973,2]
[394219563,1763388638368,-500.0,0.00021973,2]
[394219565,1763388638380,-500.0,0.00021973,2]
[394219568,1763388638391,-500.0,0.00021973,2]
[394219570,1763388638403,-500.0,0.00021973,2]
[394219572,1763388638414,-500.0,0.00021973,2]
[394219574,1763388638425,-500.0,0.00021973,2]
[394219577,1763388638437,-500.0,0.00021973,2]
[394219579,1763388638449,-24355.04437214,0.00022,7]
[394219582,1763388638464,-285.884835,0.00022,7]
[394219584,1763388638478,-749.47242381,0.00022,7]
[394219587,1763388638492,-318.29562373,0.00022,7]
[394219589,1763388638507,-1589.96274532,0.00022,7]
[394219591,1763388638516,-547.24,0.00022,14]
[394219593,1763388638526,-343.73,0.00022,7]
[394219595,1763388638535,-400.67432439,0.00022,7]
[394219610,1763388638662,-160.0,0.00022067,2]
[394219612,1763388638679,-151.0,0.000223,5]
[394219614,1763388638689,-1000.0,0.00022521,2]
[394219616,1763388638699,-1000.0,0.00022521,2]
[394219618,1763388638709,-1000.0,0.00022521,2]
[394219620,1763388638720,-260.0,0.00022615,2]
[394219622,1763388638730,-392.6691324,0.00022824,2]
[394219624,1763388638739,-166.46662109,0.0002297,2]
[394219626,1763388638751,-500.0,0.00023023,2]
[394219628,1763388638762,-1417.88563569,0.00023068,2]
[394219630,1763388638771,-1500.0,0.00023068,2]
[394219632,1763388638781,-1500.0,0.00023068,2]
[394219634,1763388638791,-360.0,0.00023163,2]
[394219636,1763388638800,-500.0,0.00023616,2]
[394219638,1763388638809,-2000.0,0.00023616,2]
[394219640,1763388638818,-261.25713174,0.00023701,2]
[394219642,1763388638827,-460.0,0.00023711,2]
[394219645,1763388638838,-400.67432439,0.00023943,2]
[394219646,1763388638848,-4936.07956505,0.0002397,10]
[394219649,1763388638859,-315.47340738,0.0002397,10]
[394219651,1763388638870,-1197.45495219,0.0002397,10]
[394219653,1763388638881,-2540.29207538,0.0002397,10]
[394219655,1763388638891,-7491.09,0.0002397,10]
[394219657,1763388638900,-12944.59,0.0002398,10]
[394219659,1763388638910,-10787.16,0.0002398,10]
[394219661,1763388638920,-500.0,0.00023989,2]
[394219663,1763388638929,-500.0,0.00023989,2]
[394219665,1763388638938,-500.0,0.00023989,2]
[394219667,1763388638947,-500.0,0.00023989,2]
[394219669,1763388638956,-500.0,0.00023989,2]
[394219671,1763388638967,-500.0,0.00023989,2]
[394219673,1763388638977,-500.0,0.00023989,2]
[394219675,1763388638986,-500.0,0.00023989,2]
[394219677,1763388638996,-500.0,0.00023989,2]
[394219679,1763388639006,-500.0,0.00023989,2]
[394219681,1763388639016,-100000.0,0.0002399,2]
[394219683,1763388639025,-1000.0,0.00024,24]
[394219685,1763388639034,-168.0,0.00024043,2]
[394219687,1763388639044,-500.0,0.00024119,2]
[394219689,1763388639053,-2500.0,0.00024164,2]
[394219691,1763388639063,-440.0,0.00024258,2]
[394219693,1763388639072,-2500.0,0.00024712,2]
[394219695,1763388639081,-500.0,0.00024773,2]
[394219697,1763388639090,-587.8768631,0.00024773,2]
[394219699,1763388639100,-501.00000005,0.00024773,2]
[394219701,1763388639109,-6342.067848,0.000248,2]
[394219703,1763388639119,-11665.84499586,0.00024844,2]
[394219705,1763388639128,-946.52794804,0.00024844,2]
[394219707,1763388639138,-10937.3266865,0.00024849,2]
[394219709,1763388639147,-2638.4654252,0.00024849,2]
[394219711,1763388639157,-32811.9800599,0.00024849,2]
[394219713,1763388639166,-500.0,0.00024873,2]
[394219715,1763388639176,-500.0,0.00024873,2]
[394219717,1763388639185,-500.0,0.00024873,2]
[394219719,1763388639194,-150.0,0.00024873,2]
[394219721,1763388639204,-182.75279002,0.00024873,2]
[394219723,1763388639214,-502.73202336,0.00024873,2]
[394219725,1763388639225,-500.0,0.00024873,2]
[394219727,1763388639235,-500.0,0.00024873,2]
[394219729,1763388639246,-500.0,0.00024873,2]
[394219731,1763388639255,-500.0,0.00024873,2]
[394219733,1763388639265,-500.0,0.00024873,2]
[394219735,1763388639275,-500.0,0.00024873,2]
[394219737,1763388639284,-502.44222309,0.00024873,2]
[394219739,1763388639293,-500.0,0.00024873,2]
[394219741,1763388639303,-500.0,0.00024873,2]
[394219743,1763388639312,-524.014313,0.000249,2]
[394219745,1763388639322,-315546.36882387,0.000249,2]
[394219748,1763388639334,-1442.73549134,0.000249,2]
[394219750,1763388639349,-2172.99554256,0.000249,2]
[394219811,1763388639882,-300.0,0.00016766,2]
[394219813,1763388639891,-228.89051107,0.00016766,2]
[394219815,1763388639902,-71.10948893,0.00016766,2]
[394219817,1763388639912,-239.16051107,0.00016766,2]
[394219821,1763388639940,-60.83948893,0.00016766,2]
[394219823,1763388639949,-300.0,0.00016766,2]
[394219825,1763388639958,-78118.58865561,0.000249,2]
[394220159,1763388643382,-300.0,0.00016766,2]
[394220161,1763388643392,-300.0,0.00016766,2]
[394220163,1763388643401,-199.33749779,0.000219,2]
[394220165,1763388643411,-3050.66250223,0.0002489,10]
[394220413,1763388646002,-500.0,0.00023989,2]
[394220415,1763388646013,-100.77913156,0.00023989,2]
[394220510,1763388780295,-500.0,0.00015899,2]
[394220511,1763388780326,-500.0,0.00015899,2]
[394220512,1763388780359,-500.0,0.00015899,2]
[394220513,1763388780393,-167.43643369,0.00015899,2]
[394220514,1763388780423,-1200.0,0.00015899,2]
[394220515,1763388780457,-887132.56356631,0.000159,2]
[394220517,1763388783527,2000.0,0.000328,120]
[394220518,1763388796162,2000.0,0.000328,120]
[394220519,1763388798006,150.0,0.000131,2]
[394220520,1763388811172,1409.312,0.000328,120]
[394220522,1763388853280,10000.0,0.000131,2]
[394220523,1763388862945,10000.0,0.000131,2]
[394220524,1763388873545,10000.0,0.000131,2]
[394220525,1763388883517,10000.0,0.000131,2]
[394220526,1763388894488,10000.0,0.000131,2]
[394220527,1763388904424,10000.0,0.000131,2]
[394220528,1763388913336,10000.0,0.000131,2]
[394220529,1763388951187,5000.0,0.000131,2]
[394220530,1763388978421,4800.84,0.000131,2]
[394220531,1763388989639,6611.0,0.00032876,120]
[394220532,1763389288221,213.0,0.00032876,120]
[394220533,1763389389476,1000.0,0.00032877,120]
[394220536,1763389542438,-412.34331952,0.00013699,2]
[394220540,1763389595073,-216.68123857,0.00013699,2]
[394220763,1763389837961,-81.49359791,0.00013699,2]
[394220764,1763389837970,-150.0,0.00014418,2]
[394220765,1763389837980,-252.1909493,0.00015138,2]
[394220766,1763389837990,-333.64945345,0.00015751,2]
[394220767,1763389837999,-197.21763022,0.00015752,2]
[394220768,1763389838009,-1047.3995415,0.00016117,2]
[394220769,1763389838024,-2470.32799405,0.00016117,2]
[394220770,1763389838033,-300.0,0.00016216,2]
[394220771,1763389838042,-300.0,0.00016216,2]
[394220772,1763389838051,-300.0,0.00016216,2]
[394220773,1763389838060,-50000.0,0.00016217,2]
[394220774,1763389838070,-300.0,0.00016217,2]
[394220775,1763389838080,-300.0,0.00016217,2]
[394220776,1763389838089,-300.0,0.00016217,2]
[394220778,1763389838098,-300.0,0.00016217,2]
[394220780,1763389838107,-300.0,0.00016217,2]
[394220781,1763389838116,-300.0,0.00016217,2]
[394220782,1763389838126,-300.0,0.00016217,2]
[394220783,1763389838139,-300.0,0.00016217,2]
[394220784,1763389838148,-300.0,0.00016217,2]
[394220785,1763389838158,-300.0,0.00016217,2]
[394220786,1763389838171,-300.0,0.00016217,2]
[394220787,1763389838181,-300.0,0.00016217,2]
[394220788,1763389838192,-300.0,0.00016217,2]
[394220789,1763389838201,-300.0,0.00016217,2]
[394220790,1763389838211,-300.0,0.00016217,2]
[394220791,1763389838221,-600.0,0.00016217,2]
[394220792,1763389838230,-495.28841905,0.00016273,2]
[394220793,1763389838240,-179.68555753,0.00016273,2]
[394220794,1763389838249,-177.0,0.00016418,2]
[394220795,1763389838259,-598.91975829,0.00016438,2]
[394220796,1763389838268,-720.0,0.00017839,2]
[394220797,1763389838278,-204.0,0.00018418,2]
[394220798,1763389838288,-864.0,0.00019623,2]
[394220799,1763389838298,-710.518156,0.00020187,2]
[394220800,1763389838308,-231.0,0.00020418,2]
[394220801,1763389838318,-1380.75365028,0.0002061,2]
[394220802,1763389838327,-254.76270254,0.000209,2]
[394220803,1763389838336,-500.0,0.00020999,2]
[394220804,1763389838345,-500.0,0.00020999,2]
[394220805,1763389838354,-500.0,0.00020999,2]
[394220806,1763389838364,-500.0,0.00020999,2]
[394220807,1763389838374,-500.0,0.00020999,2]
[394220808,1763389838384,-500.0,0.00020999,2]
[394220809,1763389838393,-500.0,0.00020999,2]
[394220810,1763389838402,-500.0,0.00020999,2]
[394220811,1763389838412,-500.0,0.00020999,2]
[394220812,1763389838425,-500.0,0.00020999,2]
[394220813,1763389838435,-500.0,0.00020999,2]
[394220814,1763389838444,-500.0,0.00020999,2]
[394220815,1763389838454,-275.53167292,0.00021,2]
[394220816,1763389838464,-206.06054456,0.00021,2]
[394220817,1763389838472,-50000.0,0.00021,2]
[394220818,1763389838481,-12776.67454322,0.000215,2]
[394220819,1763389838490,-1000.0,0.00021585,20]
[394220820,1763389838498,-500.0,0.00021917,2]
[394220821,1763389838507,-359.70811512,0.00022,2]
[394220822,1763389838517,-7099.95318117,0.00022,5]
[394220823,1763389838526,-166.46662109,0.00022125,2]
[394220824,1763389838535,-258.0,0.00022418,2]
[394220825,1763389838545,-309.36,0.00023,7]
[394220826,1763389838555,-500.0,0.00023013,2]
[394220827,1763389838564,-182.75279002,0.00023373,2]
[394220828,1763389838574,-502.73202336,0.00023373,2]
[394220829,1763389838583,-500.0,0.0002341,2]
[394220830,1763389838593,-163.4572353,0.00023434,2]
[394220831,1763389838602,-168.0,0.00023585,2]
[394220832,1763389838612,-1000.0,0.00023743,20]
[394220833,1763389838621,-244.0,0.00023743,20]
[394220834,1763389838631,-500.0,0.00023846,2]
[394220835,1763389838639,-500.0,0.00023846,2]
[394220836,1763389838648,-500.0,0.00023846,2]
[394220837,1763389838658,-500.0,0.00023846,2]
[394220838,1763389838670,-500.0,0.00023846,2]
[394220839,1763389838680,-160.0,0.00023948,2]
[394220840,1763389838690,-1000.0,0.00023958,2]
[394220841,1763389838700,-500.0,0.00023973,2]
[394220842,1763389838710,-343.65,0.0002398,3]
[394220843,1763389838720,-171.83,0.0002398,3]
[394220844,1763389838729,-515.51,0.0002398,3]
[394220845,1763389838739,-100000.0,0.0002399,2]
[394220846,1763389838749,-500.0,0.00024109,2]
[394220847,1763389838759,-168.0,0.00024393,2]
[394220848,1763389838768,-285.0,0.00024418,2]
[394220849,1763389838779,-280.0,0.00024496,2]
[394220850,1763389838789,-1000.0,0.00024521,2]
[394220851,1763389838798,-16754.58798679,0.00024774,2]
[394220852,1763389838808,-168.0,0.00024775,2]
[394220853,1763389838818,-342.11902933,0.000248,2]
[394220854,1763389838827,-199.03207514,0.00024833,2]
[394220855,1763389838837,-197.41484785,0.00024855,2]
[394220856,1763389838847,-500.0,0.00024873,2]
[394220857,1763389838857,-500.0,0.00024873,2]
[394220858,1763389838868,-587.8768631,0.00024873,2]
[394220859,1763389838878,-500.0,0.00024873,2]
[394220860,1763389838888,-500.0,0.00024873,2]
[394220861,1763389838898,-500.0,0.00024873,2]
[394220862,1763389838907,-500.0,0.00024873,2]
[394220863,1763389838918,-500.0,0.00024873,2]
[394220864,1763389838928,-500.0,0.00024873,2]
[394220865,1763389838939,-500.0,0.00024873,2]
[394220866,1763389838950,-500.0,0.00024873,2]
[394220867,1763389838960,-500.0,0.00024873,2]
[394220868,1763389838970,-502.44222309,0.00024873,2]
[394220869,1763389838980,-500.0,0.00024873,2]
[394220870,1763389838991,-946.52794804,0.00024873,2]
[394220871,1763389839000,-166.46662109,0.0002489,2]
[394220872,1763389839009,-24568.79,0.000249,7]
[394220873,1763389839094,-479.17,0.000249,14]
[394220874,1763389839105,-524.014313,0.000249,2]
[394220875,1763389839115,-479230.98299782,0.000249,2]
[394220876,1763389839128,-18515.69746179,0.000249,2]
[394220877,1763389839144,-5100.0,0.000249,2]
[394220879,1763389840193,-3517.72753555,0.00020293,2]